fUSD/lending_fUSD_20240707
["ID","MTS","AMOUNT","RATE_DAILY","PERIOD"]
[331399011,1720347040229,-778.63202683,0.00014,2]
[331399012,1720347040277,-193.67622341,0.00013999,2]
[331399013,1720347040287,-129557.86276597,0.00014,2]
[331399014,1720347040298,-282.04696975,0.00014,2]
[331399015,1720347040309,-566.76354058,0.00014,2]
[331399016,1720347040320,-5556.73676619,0.00014,2]
[331399017,1720347040331,-59138.19734566,0.00014,2]
[331399019,1720347040341,-155.0,0.00014,2]
[331399020,1720347040350,-998.0,0.00014,2]
[331399021,1720347040360,-316.22,0.00014,2]
[331399022,1720347040369,-2000.0,0.00014019,2]
[331399023,1720347040379,-200.0,0.00014019,2]
[331399024,1720347040388,-200.0,0.00014019,2]
[331399025,1720347040398,-262.19,0.00014034,2]
[331399026,1720347040408,-219.70720428,0.0001406,2]
[331399027,1720347040417,-1600.0,0.00014091,2]
[331399028,1720347040426,-427.333,0.00014091,2]
[331399029,1720347040436,-230.34324445,0.00014099,2]
[331399030,1720347040446,-150.413,0.000141,2]
[331399031,1720347040456,-206.085,0.000141,2]
[331399032,1720347040466,-150.446,0.000141,2]
[331399033,1720347040475,-1659.0,0.000141,2]
[331399034,1720347040484,-1253.074,0.000141,2]
[331399035,1720347040494,-770.813676,0.00014115,2]
[331399036,1720347040504,-3083.254707,0.00014115,2]
[331399037,1720347040514,-574.724829,0.00014115,2]
[331399038,1720347040524,-313.86407,0.00014115,2]
[331399039,1720347040533,-2000.0,0.00014159,2]
[331399040,1720347040544,-200.0,0.00014159,2]
[331399041,1720347040553,-200.0,0.00014159,2]
[331399042,1720347040563,-185.66455591,0.00014233,2]
[331399043,1720347040572,-171.371219,0.00014285,2]
[331399044,1720347040582,-770.813676,0.00014285,2]
[331399045,1720347040592,-3083.254707,0.00014285,2]
[331399046,1720347040603,-574.724829,0.00014285,2]
[331399047,1720347040613,-313.86407,0.00014285,2]
[331399048,1720347040623,-2000.0,0.00014301,2]
[331399049,1720347040633,-200.0,0.00014301,2]
[331399050,1720347040643,-200.0,0.00014301,2]
[331399051,1720347040652,-219.70720428,0.0001434,2]
[331399052,1720347040661,-183.386,0.00014351,2]
[331399053,1720347040671,-183.386,0.00014415,2]
[331399054,1720347040681,-432.49374092,0.00014431,2]
[331399055,1720347040691,-200.0,0.00014444,2]
[331399056,1720347040700,-200.0,0.00014444,2]
[331399057,1720347040710,-183.386,0.00014481,2]
[331399058,1720347040719,-183.386,0.00014547,2]
[331399059,1720347040729,-185.66455591,0.00014566,2]
[331399061,1720347040738,-1000.0,0.000146,2]
[331399064,1720347040747,-219.70720428,0.0001462,2]
[331399066,1720347040758,-1257.0,0.000147,2]
[331399069,1720347040771,-1122.18439463,0.00014707,2]
[331399072,1720347040782,-1597.442603,0.00014795,2]
[331399073,1720347040792,-155.11968494,0.00014849,2]
[331399076,1720347040802,-500.0,0.00014879,2]
[331399079,1720347040814,-500.0,0.0001488,2]
[331399081,1720347040824,-713.231984,0.000149,2]
[331399084,1720347040834,-1694.3199497,0.000149,2]
[331399086,1720347040844,-185.66455591,0.000149,2]
[331399088,1720347040854,-219.70720428,0.000149,2]
[331399091,1720347040864,-340.39744622,0.000149,2]
[331399094,1720347040873,-420.0,0.00014909,2]
[331399097,1720347040882,-1000.0,0.00014925,2]
[331399099,1720347040892,-1000.0,0.00014925,2]
[331399102,1720347040902,-1000.0,0.00014925,2]
[331399105,1720347040912,-1000.0,0.00014925,2]
[331399107,1720347040922,-1000.0,0.00014925,2]
[331399110,1720347040932,-1000.0,0.00014925,2]
[331399113,1720347040943,-1000.0,0.00014925,2]
[331399115,1720347040953,-1000.0,0.00014925,2]
[331399117,1720347040963,-1000.0,0.00014925,2]
[331399119,1720347040975,-1000.0,0.00014925,2]
[331399121,1720347040984,-1000.0,0.00014925,2]
[331399123,1720347040993,-1000.0,0.00014925,2]
[331399125,1720347041003,-1000.0,0.00014925,2]
[331399126,1720347041012,-1000.0,0.00014925,2]
[331399127,1720347041023,-1000.0,0.00014925,2]
[331399128,1720347041032,-1000.0,0.00014925,2]
[331399129,1720347041041,-1000.0,0.00014925,2]
[331399130,1720347041051,-1000.0,0.00014925,2]
[331399131,1720347041060,-1000.0,0.00014925,2]
[331399132,1720347041070,-1000.0,0.00014925,2]
[331399133,1720347041081,-1000.0,0.00014925,2]
[331399134,1720347041091,-1000.0,0.00014925,2]
[331399135,1720347041100,-1000.0,0.00014925,2]
[331399136,1720347041110,-1000.0,0.00014925,2]
[331399137,1720347041120,-1000.0,0.00014925,2]
[331399138,1720347041129,-1000.0,0.00014925,2]
[331399139,1720347041139,-1000.0,0.00014925,2]
[331399140,1720347041149,-434.9064,0.00014925,2]
[331399141,1720347041158,-34669.0,0.00014986,2]
[331399142,1720347041168,-1008.0531,0.00014999,2]
[331399143,1720347041177,-1000.0,0.00014999,2]
[331399144,1720347041187,-1090.24322176,0.00014999,2]
[331399145,1720347041196,-35784.00175993,0.00015,2]
[331399146,1720347041209,-785.60005,0.00015,2]
[331399147,1720347041220,-40198.112354,0.00015,2]
[331399148,1720347041232,-1251.34130064,0.00015,2]
[331399149,1720347041243,-729.82228752,0.00015,2]
[331399150,1720347041254,-6628.30439943,0.00015,2]
[331399151,1720347041266,-2183.16426548,0.00015,2]
[331399152,1720347041277,-358.33485164,0.00015,2]
[331399153,1720347041289,-671.52681604,0.00015,2]
[331399154,1720347041300,-11904.44484053,0.00015,2]
[331399155,1720347041312,-4894.76902435,0.00015,2]
[331399156,1720347041488,-34674.87507379,0.00015,2]
[331399157,1720347041563,-3383.5,0.00015,2]
[331399158,1720347041574,-2954.1894928,0.00015,2]
[331399159,1720347041585,-45492.75619213,0.00015,2]
[331399160,1720347041596,-662.70634916,0.00015,2]
[331399161,1720347041607,-441.48538942,0.00015,2]
[331399162,1720347041618,-590.24184899,0.00015,2]
[331399163,1720347041630,-630.25841339,0.00015,2]
[331399164,1720347041640,-499.30965956,0.00015,2]
[331399165,1720347041652,-54949.59560973,0.00015,2]
[331399228,1720347044107,-8908.07513864,0.00015,2]
[331399229,1720347044118,-253.60107578,0.00015,2]
[331399230,1720347044130,-424071.73155657,0.00015,2]
[331399231,1720347044142,-262.67973766,0.00015,2]
[331399232,1720347044185,-17991.77143139,0.00015,2]
[331399233,1720347044197,-925.50594997,0.00015,2]
[331399234,1720347046023,-2080.68,0.00015,2]
[331399235,1720347046033,-955.62140526,0.00015,2]
[331399236,1720347046045,-2724.565046,0.00015,2]
[331399237,1720347046653,-295.46908239,0.00013574,2]
[331399238,1720347046663,-65368.75008532,0.00015,2]
[331399239,1720347046956,-106013.76649635,0.00015,2]
[331399240,1720347046968,-27777.27753824,0.00015,2]
[331399241,1720347046978,-419.95973494,0.00015,2]
[331399242,1720347046989,-1057.20209729,0.00015,2]
[331399243,1720347047098,-5964.68591351,0.00015,2]
[331405895,1720347461939,312.7,0.00010845,2]
[331405896,1720347465036,5100.0,0.00034096,34]
[331405897,1720347469229,307.59113526,0.00011199,2]
[331405898,1720347474788,25766.0,0.00034096,30]
[331405900,1720347505089,403.50954648,0.00011199,2]
[331405902,1720347528749,424.94216003,0.00011199,2]
[331405905,1720347620052,16359.33042637,0.00011199,2]
[331405907,1720347622510,243.42402484,0.00011199,2]
[331405909,1720347719150,50000.0,0.00034096,30]
[331405910,1720347721228,50000.0,0.00034096,30]
[331405911,1720347744726,291.1,0.00010959,2]
[331405912,1720347769253,9404.79841482,0.00034096,30]
[331405913,1720347783551,35591.7209191,0.00011199,2]
[331405915,1720347902876,24720.73753228,0.00011199,2]
[331405917,1720347957498,500.0,0.00011694,2]
[331405918,1720347969137,551.38,0.00011694,2]
[331405919,1720347981221,2198.85723835,0.00011199,2]
[331405920,1720347982993,1471.99402501,0.00011199,2]
[331405925,1720348052711,-2154.75,0.00011748,2]
[331405926,1720348052734,-479.41,0.00011749,2]
[331405927,1720348052756,-438.28,0.00011878,2]
[331405928,1720348052778,-3896.69,0.00011903,2]
[331405931,1720348066958,297.06,9.817e-05,2]
[331405932,1720348083281,10521.81940064,0.00011199,2]
[331405933,1720348091837,1245.75,0.00011713,2]
[331405934,1720348107451,-297.06,0.00012081,2]
[331405936,1720348110627,-241.0,0.00012101,2]
[331405937,1720348112049,-2248.49571636,0.00012102,2]
[331405939,1720348115349,250.0,0.00011714,2]
[331405941,1720348118096,1012.69,0.00011726,2]
[331405942,1720348121080,157.12217543,0.00011199,2]
[331405949,1720348157922,1904.10665691,0.00011199,2]
[331405951,1720348162482,173.91008171,0.00011199,2]
[331405956,1720348198729,7468.41168531,0.00011199,2]
[331405957,1720348198827,12160.63241945,0.00011199,2]
[331405960,1720348209163,842.78,0.00011615,2]
[331405969,1720348238548,-171.14300236,0.00012094,2]
[331405971,1720348238570,-574.4,0.00012161,2]
[331405973,1720348238581,-300.0,0.00012193,2]
[331405974,1720348238591,-574.4,0.00012194,2]
[331405975,1720348238601,-574.4,0.00012228,2]
[331405977,1720348238611,-32200.77,0.0001224,2]
[331405979,1720348238621,-574.4,0.00012261,2]
[331405980,1720348238631,-156.09391946,0.00012273,2]
[331405982,1720348238640,-574.4,0.00012294,2]
[331405984,1720348238650,-499.99,0.00012302,2]
[331405986,1720348238660,-1807.76757933,0.00012302,2]
[331405987,1720348238670,-209.96997035,0.00012314,2]
[331405989,1720348238680,-188.85,0.00012327,2]
[331405991,1720348238690,-574.4,0.00012328,2]
[331405993,1720348238700,-285.79,0.00012348,2]
[331405995,1720348238711,-574.4,0.00012361,2]
[331405996,1720348238720,-574.4,0.00012394,2]
[331405998,1720348238730,-535.0,0.00012398,2]
[331406000,1720348238739,-574.4,0.00012428,2]
[331406002,1720348238749,-3556.67,0.00012438,2]
[331406003,1720348238759,-250.0,0.00012446,2]
[331406004,1720348238769,-1000.0,0.0001246,2]
[331406005,1720348238779,-574.4,0.00012461,2]
[331406006,1720348238789,-574.4,0.00012494,2]
[331406007,1720348238799,-574.4,0.00012528,2]
[331406008,1720348238809,-9999.99,0.00012556,2]
[331406009,1720348238819,-17874.33,0.00012556,2]
[331406010,1720348238830,-166.47,0.00012556,2]
[331406011,1720348238840,-574.4,0.00012561,2]
[331406012,1720348238849,-574.4,0.00012594,2]
[331406013,1720348238859,-574.4,0.00012628,2]
[331406014,1720348238869,-178.11,0.00012646,2]
[331406015,1720348238879,-574.4,0.00012661,2]
[331406016,1720348238889,-200.0,0.0001267,2]
[331406017,1720348238900,-23900.0,0.0001267,2]
[331406018,1720348238910,-299.99,0.00012674,2]
[331406019,1720348238920,-574.4,0.00012694,2]
[331406020,1720348238930,-574.4,0.00012728,2]
[331406021,1720348238941,-574.4,0.00012761,2]
[331406022,1720348238951,-5445.83,0.00012763,2]
[331406023,1720348238963,-799.48,0.00012763,2]
[331406024,1720348238972,-574.4,0.00012794,2]
[331406025,1720348238983,-168.75,0.00012807,2]
[331406026,1720348238992,-150.99,0.00012932,2]
[331406027,1720348239003,-793.02,0.00012969,2]
[331406028,1720348239013,-6408.26845058,0.00013128,2]
[331406029,1720348239025,-238.87465376,0.00013128,2]
[331406030,1720348239036,-420.0,0.00013383,2]
[331406031,1720348239047,-27888.89503171,0.00013447,2]
[331406032,1720348239060,-15728.47517638,0.00013447,2]
[331406033,1720348239078,-384.38674592,0.00013447,2]
[331406034,1720348239096,-965.41908988,0.00013447,2]
[331406035,1720348239109,-346.48303694,0.00013447,2]
[331406036,1720348239122,-967.08683004,0.00013447,2]
[331406037,1720348239135,-570.09,0.00013447,2]
[331406039,1720348239148,-347.9445,0.00013447,2]
[331406041,1720348239165,-250.33780553,0.00013447,2]
[331406043,1720348239178,-2411.95134433,0.00013447,2]
[331406045,1720348239193,-898.53028455,0.00013447,2]
[331406048,1720348239208,-947.56950504,0.00013447,2]
[331406050,1720348239221,-3378.90602154,0.00013447,2]
[331406053,1720348239234,-3062.23394793,0.00013447,2]
[331406055,1720348239247,-1200.22252239,0.00013447,2]
[331406057,1720348239260,-399.70833916,0.00013447,2]
[331406060,1720348239273,-1004.35381733,0.00013447,2]
[331406062,1720348239286,-950.90717399,0.00013447,2]
[331406064,1720348239299,-3049.88511814,0.00013447,2]
[331406066,1720348239312,-9881.99222486,0.00013447,2]
[331406069,1720348239328,-7768.1384,0.00013447,2]
[331406071,1720348239341,-7146.2938,0.00013447,2]
[331406073,1720348239355,-18261.65070178,0.00013447,2]
[331406075,1720348239367,-3971.07024,0.00013447,2]
[331406077,1720348239380,-358.48667185,0.00013447,2]
[331406080,1720348239394,-1331.32137545,0.00013447,2]
[331406082,1720348239407,-603.45575644,0.00013447,2]
[331406084,1720348239420,-910.60655848,0.00013447,2]
[331406086,1720348239433,-3832.64287863,0.00013447,2]
[331406088,1720348239447,-14198.30525229,0.00013447,2]
[331406091,1720348239460,-871.5527439,0.00013447,2]
[331406093,1720348239474,-2507.5411017,0.00013447,2]
[331406095,1720348239487,-1087.10900317,0.00013447,2]
[331406097,1720348239500,-1216.3246722,0.00013447,2]
[331406102,1720348239576,-46200.68907466,0.00013447,2]
[331406103,1720348239589,-5080.58757125,0.00013447,2]
[331406104,1720348239602,-57728.84568254,0.00013447,2]
[331406105,1720348239617,-5386.87256081,0.00013472,2]
[331406106,1720348239627,-754.14237346,0.00013574,2]
[331406107,1720348239638,-1903.19893507,0.00013574,2]
[331406108,1720348239649,-157.11482821,0.00013574,2]
[331406109,1720348239660,-10177.561745,0.00013605,2]
[331406110,1720348239671,-248.706229,0.00013605,2]
[331406111,1720348239681,-155.441395,0.00013605,2]
[331406112,1720348239693,-3324.157826,0.00013605,2]
[331406113,1720348239704,-374.8279089,0.00013659,2]
[331406114,1720348239714,-485.93,0.00013699,2]
[331406115,1720348239725,-2751.0,0.00013699,2]
[331406116,1720348239736,-2148.51,0.00013699,2]
[331406117,1720348239746,-500.0,0.00013699,2]
[331406118,1720348239757,-3126.28,0.00013699,2]
[331406119,1720348239768,-202.79962941,0.00013759,2]
[331406120,1720348239779,-202.79962941,0.00013759,2]
[331406121,1720348239789,-10177.561745,0.00013775,2]
[331406122,1720348239800,-248.706229,0.00013775,2]
[331406123,1720348239811,-3324.157826,0.00013775,2]
[331406124,1720348239822,-162.59089085,0.00013899,2]
[331406125,1720348239832,-235.68861418,0.00013899,2]
[331406126,1720348239843,-755.58438261,0.000139,2]
[331406127,1720348239854,-10177.561745,0.00013945,2]
[331406128,1720348239865,-248.706229,0.00013945,2]
[331406129,1720348239876,-3324.157826,0.00013945,2]
[331406130,1720348239888,-1201.647,0.00013962,2]
[331406131,1720348239899,-173.38,0.00013984,2]
[331406132,1720348239910,-198.12085426,0.00013998,2]
[331406133,1720348239921,-500.0,0.00013998,2]
[331406134,1720348239932,-203.46506876,0.00013998,2]
[331406135,1720348239943,-500.0,0.00013998,2]
[331406136,1720348239953,-500.0,0.00013998,2]
[331406137,1720348239964,-500.0,0.00013998,2]
[331406138,1720348239974,-500.0,0.00013998,2]
[331406139,1720348239985,-500.0,0.00013998,2]
[331406140,1720348239996,-500.0,0.00013998,2]
[331406141,1720348240006,-500.0,0.00013998,2]
[331406142,1720348240017,-500.0,0.00013998,2]
[331406143,1720348240028,-500.0,0.00013998,2]
[331406144,1720348240039,-500.0,0.00013998,2]
[331406145,1720348240049,-500.0,0.00013998,2]
[331406146,1720348240060,-500.0,0.00013998,2]
[331406147,1720348240072,-500.0,0.00013998,2]
[331406148,1720348240082,-620.34650688,0.00013998,2]
[331406149,1720348240092,-458.00770246,0.00013998,2]
[331406150,1720348240103,-500.0,0.00013998,2]
[331406151,1720348240114,-500.0,0.00013998,2]
[331406152,1720348240124,-500.0,0.00013998,2]
[331406153,1720348240138,-500.0,0.00013998,2]
[331406154,1720348240149,-465.77694053,0.00013998,2]
[331406155,1720348240164,-439.73308216,0.00013998,2]
[331406156,1720348240176,-694056.46708866,0.00013999,2]
[331406157,1720348240187,-3075.09742481,0.00013999,2]
[331406158,1720348240199,-2378.93432536,0.00013999,2]
[331406159,1720348240210,-3391.7728628,0.00013999,2]
[331406160,1720348240221,-3107.31885347,0.00013999,2]
[331406161,1720348240233,-3026.88693848,0.00013999,2]
[331406162,1720348240245,-182.84694878,0.00014,2]
[331406163,1720348240256,-1000.0,0.00014018,2]
[331406164,1720348240268,-285.67,0.00014096,2]
[331406165,1720348240279,-156.69839307,0.00014099,2]
[331406166,1720348240291,-10177.561745,0.00014115,2]
[331406167,1720348240303,-248.706229,0.00014115,2]
[331406168,1720348240314,-3324.157826,0.00014115,2]
[331406169,1720348240326,-1600.0,0.00014182,2]
[331406170,1720348240337,-355.03,0.00014192,2]
[331406171,1720348240348,-5809.0,0.000142,2]
[331406172,1720348240359,-1082.525,0.000142,2]
[331406173,1720348240371,-168.4,0.00014257,2]
[331406174,1720348240382,-155.441395,0.00014285,2]
[331406175,1720348240394,-10177.561745,0.00014285,2]
[331406176,1720348240405,-248.706229,0.00014285,2]
[331406177,1720348240417,-3324.157826,0.00014285,2]
[331406178,1720348240428,-374.82790879,0.00014318,2]
[331406179,1720348240439,-297.06,0.00014345,2]
[331406180,1720348240450,-755.58438259,0.0001435,2]
[331406181,1720348240461,-297.03,0.00014506,2]
[331406182,1720348240472,-948.0,0.00014567,2]
[331406183,1720348240483,-587.0,0.00014689,2]
[331406184,1720348240494,-192.40825381,0.0001478,2]
[331406185,1720348240504,-1327.558785,0.00014795,2]
[331406186,1720348240515,-755.58438259,0.000148,2]
[331406187,1720348240526,-500.0,0.0001488,2]
[331406188,1720348240536,-1684.7492,0.000149,2]
[331406189,1720348240549,-9062.7068,0.000149,2]
[331406190,1720348240560,-2621.9025967,0.000149,2]
[331406191,1720348240570,-878.23488154,0.000149,2]
[331406192,1720348240581,-500.0,0.00014925,2]
[331406193,1720348240591,-500.0,0.00014925,2]
[331406194,1720348240602,-500.0,0.00014925,2]
[331406195,1720348240614,-501.9928,0.00014925,2]
[331406196,1720348240624,-374.82790879,0.00014978,2]
[331406197,1720348240635,-30800.20664485,0.0001498,2]
[331406198,1720348240650,-23713.49298103,0.0001498,2]
[331406199,1720348240660,-605703.47712836,0.00015,2]
[331406200,1720348240673,-33287.88179021,0.00015,2]
[331406201,1720348240687,-5728.92891518,0.00015,2]
[331406202,1720348240700,-1357.62885533,0.00015,2]
[331406203,1720348240712,-573.2828905,0.00015,2]
[331406204,1720348240726,-822.49017547,0.00015,2]
[331406205,1720348240738,-10858.90753303,0.00015,2]
[331406208,1720348241143,-155.0,0.00012302,2]
[331406211,1720348241156,-262.17695916,0.00015,2]
[331406214,1720348241172,-1606.22425263,0.00015,2]
[331406217,1720348241184,-264.44086603,0.00015,2]
[331406220,1720348241199,-520.53403044,0.00015,2]
[331406224,1720348241212,-282.46999999,0.00015,2]
[331406227,1720348241224,-93224.98884359,0.00015,2]
[331406229,1720348241237,-1617.05928369,0.00015,2]
[331406231,1720348241249,-24643.95852302,0.00015,2]
[331406233,1720348241259,-630.64679402,0.00015,2]
[331406235,1720348241269,-212004.24816257,0.00015,2]
[331406246,1720348241370,-341427.57759031,0.00015,2]
[331406249,1720348241383,-52787.3606105,0.00015,2]
[331406251,1720348241395,-21195.80282734,0.00015,2]
[331406253,1720348241406,-24193.88885176,0.00015,2]
[331406256,1720348241419,-639.09988034,0.00015,2]
[331406258,1720348241431,-2468.58893208,0.00015,2]
[331406260,1720348241444,-19226.088,0.00015,2]
[331406416,1720348247105,-161.57771743,0.00013989,2]
[331406418,1720348247115,-161.57771743,0.0001499,2]
[331406420,1720348247125,-161.57771743,0.0001499,2]
[331406422,1720348247135,-6675.26684773,0.00015,2]
[331406424,1720348247147,-20641.58785146,0.00015,2]
[331406554,1720348248409,-5966.6050798,0.00015,2]
[331406557,1720348248421,-3696.80870395,0.00015,2]
[331406558,1720348248429,-633.78756081,0.00015,2]
[331406561,1720348248442,-4063.45837306,0.00015,2]
[331406563,1720348248455,-915.43335499,0.00015,2]
[331406570,1720348248514,-711.38074383,0.00015,2]
[331406572,1720348248526,-279.82539136,0.00015,2]
[331406574,1720348248537,-45192.60432892,0.00015,2]
[331406577,1720348248549,-493.706,0.00015,2]
[331406579,1720348248563,-1749.91574108,0.00015,2]
[331406584,1720348248602,-596.87319405,0.00015,2]
[331406586,1720348248613,-445.1215721,0.00015,2]
[331406589,1720348248626,-649.99877428,0.00015,2]
[331406591,1720348248637,-20359.84992364,0.00015,2]
[331406593,1720348248648,-3446.99352374,0.00015,2]
[331406595,1720348248660,-4380.23420443,0.00015,2]
[331406598,1720348248672,-1938.82649544,0.00015,2]
[331406600,1720348248684,-13540.258555,0.00015,2]
[331406602,1720348248695,-1235.87774031,0.00015,2]
[331410251,1720348432960,9761.35877786,0.00011199,2]
[331410252,1720348454081,238.64122214,0.00011199,2]
[331410253,1720348454108,3969.5601808,0.00011199,2]
[331410254,1720348460107,1373.07021657,0.000118,2]
[331410255,1720348501150,2636.20978201,0.00011199,2]
[331410256,1720348523610,2021.15982062,0.000118,2]
[331410257,1720348523639,10000.0,0.000118,2]
[331410258,1720348523669,10000.0,0.000118,2]
[331410259,1720348523695,10000.0,0.000118,2]
[331410260,1720348523722,10000.0,0.000118,2]
[331410261,1720348523748,10000.0,0.000118,2]
[331410262,1720348523774,10000.0,0.000118,2]
[331410263,1720348523799,10000.0,0.000118,2]
[331410264,1720348527171,2201.0498595,0.00011199,2]
[331410265,1720348595000,496212.7941372,0.00011199,2]
[331410267,1720348671331,155.0,0.00011199,2]
[331410268,1720348684224,292.47425253,0.00011199,2]
[331410269,1720348684750,283.56,0.00011329,2]
[331410270,1720348688352,155.0,0.00011199,2]
[331410272,1720348714473,172272.18722634,0.00011199,2]
[331410275,1720348740360,282.23845864,0.00011199,2]
[331410276,1720348741941,200.61725219,0.00011199,2]
[331410278,1720348785381,2828.80779475,0.00011199,2]
[331410281,1720348813183,2205.89349028,0.00011199,2]
[331410282,1720348860711,1252.75750804,0.00011199,2]
[331410284,1720349024206,1500.0,0.00011199,2]
[331410285,1720349140263,1298.138827,0.00011199,2]
[331410286,1720349153417,1135.76118208,0.00011199,2]
[331410287,1720349163471,264.6200961,0.00011199,2]
[331410288,1720349179133,155.0,0.00011199,2]
[331410289,1720349192801,1271.41583717,0.00011199,2]
[331410290,1720349203291,430.00947767,0.00011199,2]
[331410291,1720349242908,960.15778522,0.00011199,2]
[331410292,1720349249898,1404.38517432,0.00011199,2]
[331410293,1720349270380,155.0,0.00011199,2]
[331410294,1720349273692,-366.025366,0.00012273,2]
[331410295,1720349273722,-300.0,0.00012301,2]
[331410296,1720349273829,-29362.66145586,0.00012302,2]
[331410297,1720349273854,-208.4,0.00012634,2]
[331410298,1720349273880,-208.4,0.00012697,2]
[331410299,1720349273908,-1000.0,0.0001271,2]
[331410300,1720349273935,-9131.94,0.00012719,2]
[331410301,1720349273964,-237.63,0.00012859,2]
[331410302,1720349273990,-250.0,0.00012864,2]
[331410303,1720349274014,-3439.57,0.00012864,2]
[331410304,1720349274122,-23890.0,0.00012985,2]
[331410305,1720349274148,-250.0,0.00013094,2]
[331410306,1720349274174,-387.0,0.00013124,2]
[331410307,1720349274199,-2375.7192167,0.00013128,2]
[331410308,1720349274224,-178.11,0.00013257,2]
[331410309,1720349274249,-312.2489,0.00013383,2]
[331410310,1720349274274,-203.62676048,0.00013472,2]
[331410311,1720349274300,-4632.77112139,0.00013473,2]
[331410312,1720349274328,-2407.8169,0.00013474,2]
[331410313,1720349274354,-109993.272,0.00013483,2]
[331410314,1720349274380,-420.0,0.000135,2]
[331410315,1720349274405,-349.96,0.00013516,2]
[331410316,1720349274431,-283.94137394,0.00013543,2]
[331410317,1720349274455,-717.29122203,0.00013543,2]
[331410318,1720349274480,-470.77249766,0.00013543,2]
[331410319,1720349274511,-283.56,0.00013593,2]
[331410320,1720349274537,-196.806491,0.00013605,2]
[331410321,1720349274562,-500.0,0.00013699,2]
[331410322,1720349274587,-1901.47,0.00013699,2]
[331410323,1720349274613,-242.96,0.00013699,2]
[331410324,1720349274641,-1792.58291557,0.00013702,2]
[331410325,1720349274668,-12775.20479459,0.00013736,2]
[331410326,1720349274695,-685.22194102,0.00013736,2]
[331410327,1720349274721,-162.59089085,0.00013749,2]
[331410328,1720349274747,-721.63032117,0.00013759,2]
[331410329,1720349274773,-188.45703521,0.00013799,2]
[331410330,1720349274798,-196.28901534,0.00013799,2]
[331410331,1720349274826,-500.0,0.00013799,2]
[331410332,1720349274853,-235.59405632,0.00013799,2]
[331410333,1720349274878,-438240.47572487,0.000138,2]
[331410334,1720349292724,9325.46295763,0.00034075,30]
[331410335,1720349320132,255.2,0.00011388,2]
[331410336,1720349357058,525.10278133,0.00034075,30]
[331410337,1720349363738,1000.0,0.0001,2]
[331410342,1720349391047,1000.0,0.00011,2]
[331410348,1720349432241,-994.0,0.00012992,2]
[331410350,1720349432251,-250.0,0.00013073,2]
[331410352,1720349432261,-331.9617262,0.00013283,2]
[331410353,1720349432271,-300.0,0.00013382,2]
[331410355,1720349432281,-2508.7196,0.00013383,2]
[331410357,1720349432290,-328.1167,0.00013383,2]
[331410360,1720349432298,-6318.6019738,0.00013383,2]
[331410363,1720349432312,-670.61191674,0.00013383,2]
[331410365,1720349432324,-6949.17054274,0.00013383,2]
[331410366,1720349432336,-2809.947,0.00013383,2]
[331410367,1720349433411,-1460.3512008,0.00013383,2]
[331410368,1720349433424,-3364.86830082,0.00013383,2]
[331410369,1720349433436,-664.03948097,0.00013383,2]
[331410383,1720349439950,-337.129035,0.00013383,2]
[331410385,1720349439964,-2773.28413778,0.00013383,2]
[331410386,1720349440024,-20218.20151135,0.00013383,2]
[331410387,1720349440036,-52647.18938623,0.00013383,2]
[331410388,1720349441718,-400.0,0.00013383,2]
[331410391,1720349441732,-253.90437755,0.00013383,2]
[331410393,1720349441745,-3320.0,0.00013383,2]
[331410395,1720349441757,-437.70943335,0.00013383,2]
[331410396,1720349441785,-364.82116917,0.00013383,2]
[331410397,1720349441801,-12558.8117337,0.00013383,2]
[331410398,1720349441812,-957.15649194,0.00013472,2]
[331410399,1720349441822,-691.31400347,0.00013472,2]